Workbook

Sheet divendres mati
C1: GA:
A2: Curs 2025-2026
C3: SLIPI:
A7: Tipus | F7: Assignatura:
A8: Gran Grup | B8: GG | C8: =COUNTIF(E19:FH42,"GG")*0.25 -> 0 | F8: Semestre:
A9: Seminari | B9: A | C9: =COUNTIF(E19:FH42,"A")*0.25 -> 0 | F9: Grau: | L9: Grup: | R9: Curs:
A10: Seminari | B10: B | C10: =COUNTIF(E19:FH42,"B")*0.25 -> 0 | F10: Model docent: | L10: ECTS:
A11: Seminari | B11: C | C11: =COUNTIF(E19:FH42,"C")*0.25 -> 0 | F11: N. Alumnes: | L11: Professor/a respons. assig.:
A12: Avaluació | B12: AV | C12: =COUNTIF(E19:FH42,"AV")*0.25 -> 0 | F12: Hores Gran Grup: | L12: Professors/res assignatures:
A13: Pràct. Labor. | B13: PLA | C13: =COUNTIF(E19:FH42,"PLA")*0.25 -> 0 | F13: Hores per Seminari:
A14: Pràct. Labor. | B14: PLB | C14: =COUNTIF(E19:FH42,"PLB")*0.25 -> 0 | F14: Hores per Pràctiques Laboratori:
A15: Pràct. Labor. | B15: PLC | C15: =COUNTIF(E19:FH42,"PLC")*0.25 -> 0
A16: Tutories | B16: T | C16: =COUNTIF(E19:FH42,"T")*0.25 -> 0
A18: Horari | E18: 2025-09-12 | I18: =E18+7 -> 2025-09-19 | M18: =I18+7 -> 2025-09-26 | Q18: =M18+7 -> 2025-10-03 | U18: =Q18+7 -> 2025-10-10 | Y18: =U18+7 -> 2025-10-17 | AC18: =Y18+7 -> 2025-10-24 | AG18: =AC18+7 -> 2025-10-31 | AK18: =AG18+7 -> 2025-11-07 | AO18: =AK18+7 -> 2025-11-14 | AR18: =AO18+7 -> 2025-11-21 | AS18: =AO18+7 -> 2025-11-21 | AV18: =AS18+7 -> 2025-11-28 | AW18: =AS18+7 -> 2025-11-28 | AZ18: =AW18+7 -> 2025-12-05 | BA18: =AW18+7 -> 2025-12-05 | BD18: =BA18+7 -> 2025-12-12 | BE18: =BA18+7 -> 2025-12-12 | BH18: =BE18+7 -> 2025-12-19 | BI18: =BE18+7 -> 2025-12-19 | BL18: =BI18+7 -> 2025-12-26 | BM18: 2026-01-09 | BP18: =BM18+7 -> 2026-01-16 | BQ18: =BM18+7 -> 2026-01-16 | BT18: =BQ18+7 -> 2026-01-23 | BU18: =BQ18+7 -> 2026-01-23 | BX18: =BU18+7 -> 2026-01-30 | BY18: =BU18+7 -> 2026-01-30 | CB18: =BY18+7 -> 2026-02-06 | CC18: =BY18+7 -> 2026-02-06 | CF18: =CC18+7 -> 2026-02-13 | CG18: =CC18+7 -> 2026-02-13 | CJ18: =CG18+7 -> 2026-02-20 | CK18: =CG18+7 -> 2026-02-20 | CN18: =CK18+7 -> 2026-02-27 | CO18: =CK18+7 -> 2026-02-27 | CR18: =CO18+7 -> 2026-03-06 | CS18: =CO18+7 -> 2026-03-06 | CV18: =CS18+7 -> 2026-03-13 | CW18: =CS18+7 -> 2026-03-13 | CZ18: =CW18+7 -> 2026-03-20 | DA18: =CW18+7 -> 2026-03-20 | DD18: =DA18+7 -> 2026-03-27 | DE18: =DA18+7 -> 2026-03-27 | DH18: =DE18+7 -> 2026-04-03 | DI18: 2026-04-10 | DL18: =DI18+7 -> 2026-04-17 | DM18: =DI18+7 -> 2026-04-17 | DP18: =DM18+7 -> 2026-04-24 | DQ18: =DM18+7 -> 2026-04-24 | DT18: =DQ18+7 -> 2026-05-01 | DU18: =DQ18+7 -> 2026-05-01 | DX18: =DU18+7 -> 2026-05-08 | DY18: =DU18+7 -> 2026-05-08 | EB18: =DY18+7 -> 2026-05-15 | EC18: =DY18+7 -> 2026-05-15 | EF18: =EC18+7 -> 2026-05-22 | EG18: =EC18+7 -> 2026-05-22 | EJ18: =EG18+7 -> 2026-05-29 | EK18: =EG18+7 -> 2026-05-29 | EN18: =EK18+7 -> 2026-06-05 | EO18: =EK18+7 -> 2026-06-05 | ER18: =EO18+7 -> 2026-06-12 | ES18: =EO18+7 -> 2026-06-12 | EV18: =ES18+7 -> 2026-06-19 | EW18: =ES18+7 -> 2026-06-19 | EZ18: =EW18+7 -> 2026-06-26 | FA18: =EW18+7 -> 2026-06-26 | FD18: =FA18+7 -> 2026-07-03 | FE18: =FA18+7 -> 2026-07-03 | FH18: =FE18+7 -> 2026-07-10
A19: 08:00:00 | C19: 08:15:00
A20: 08:15:00 | C20: 08:30:00
A21: 08:30:00 | C21: 08:45:00
A22: 08:45:00 | C22: 09:00:00
A23: 09:00:00 | C23: 09:15:00
A24: 09:15:00 | C24: 09:30:00
A25: 09:30:00 | C25: 09:45:00
A26: 09:45:00 | C26: 10:00:00
A27: 10:00:00 | C27: 10:15:00
A28: 10:15:00 | C28: 10:30:00
A29: 10:30:00 | C29: 10:45:00
A30: 10:45:00 | C30: 11:00:00
A31: 11:00:00 | C31: 11:15:00
A32: 11:15:00 | C32: 11:30:00
A33: 11:30:00 | C33: 11:45:00
A34: 11:45:00 | C34: 12:00:00
A35: 12:00:00 | C35: 12:15:00
A36: 12:15:00 | C36: 12:30:00
A37: 12:30:00 | C37: 12:45:00
A38: 12:45:00 | C38: 13:00:00
A39: 13:00:00 | C39: 13:15:00
A40: 13:15:00 | C40: 13:30:00
A41: 13:30:00 | C41: 13:45:00
A42: 13:45:00 | C42: 14:00:00
A43: Espai Assignat
A45: Comentaris: | DU45: Festa del Treball
A96: Model | B96: Aula | D96: ECTS | E96: Assignatures | J96: Grups | K96: Graus | L96: Sem | M96: Curs
A97: 1A | B97: 11 (GA/100) | D97: 3 | K97: GEI | L97: 1er | M97: 1
A98: 1B | B98: 12 (GA/101) | D98: 4 | E98: 44327 Anglès | J98: 1 | K98: GEP | L98: 2on | M98: 2
A99: 2 | B99: 13 (GA/102) | D99: 5 | E99: 44328 Biologia i Geologia | J99: 1/20 | K99: GEP-GEI | L99: Anual | M99: 3
A100: 3 | B100: 14 (GA/103) | D100: 6 | E100: 44330 Física i Química | J100: 1/70 | K100: GPE-GES | M100: 4
A101: 4 | B101: 15 (GA/104) | D101: 7 | E101: 44332 Geografia i història | J101: 2 | K101: GES
A102: 5 | B102: 16 (GA/111) | D102: 8 | E102: 44335 Llengua francesa | J102: 3 | K102: GPE
A103: 6 | B103: 17 (GA/112) | D103: 9 | E103: 44336 Llengua i literatura catalana i espanyola | J103: 4
B104: 18 (GA/117) | D104: 10 | E104: 44340 Orientació educativa | J104: 4/40
B105: 19 (GA/119) | D105: 12 | J105: 20
B106: 21 (GA/200) | D106: 15 | J106: 21
B107: 22 (GA/201) | J107: 31
B108: 24 (GA/203) | J108: 41
B109: 25 (GA/204) | J109: 61
B110: 26 (GA/211) | J110: 62
B111: 27 (GA/212) | J111: 70
B112: 28 (GA/218) | J112: 71
B113: 29 (GA/219) | J113: 90
B114: 31 (GA/300) | J114: 90/1
B115: 33 (GA/302)
B116: 35 (GA/304)
B117: 36 (GA/311)
B118: 37 (GA/312)
B119: 39 ( GA/319)
B120: 41 (GA/400)
B121: 43 ( GA/402)
B122: 44 (GA/403)
B123: 45 (GA/404)
B124: 46 (GA/411)
B125: 47 (GA/412)
B126: 48 (GA/418)
B127: 49 (GA/419)
B128: 61 (G6/005)
B129: 62 (G6/006)
B130: 63 ( G6/007)
B131: E.T (G6/009)
B132: 65 (G6/107)
B133: 69 (G6/208)
B134: 51 (G5/-104)
B135: 52 (G5/-106)
B136: 71 (GL/505)
B137: 72 (GL/502)
B138: 73 (GL/305)
B139: 74 (GL/402)
B140: 81 (GS/012)
B141: 82 (GS/013)
B142: 83 (GB/002)
B143: L1 (GL/102)
B144: L2 (GL/105)
B145: L3 (GA/318)
B146: Inf2 (G6/106)
B147: Inf3 (G6/105)
B148: Inf4 (G6/103)
B149: Inf5 (G6/208)
B150: Inf6 (G6/202)
B151: S1 (GB/012)
B152: S2 (GB/003)
B153: S.foniatria (GB/005)
B154: S. Polivalent (GD/000)
B155: Taller 1 (GL/308)
B156: Taller 2 (GL/306)

Sheet divendres tarda
C1: GA:
A2: Curs 2025-2026
C3: SLIPI:
A7: Tipus | F7: Assignatura:
A8: Gran Grup | B8: GG | C8: =COUNTIF(E19:FH42,"GG")*0.25 -> 0 | F8: Semestre:
A9: Seminari | B9: A | C9: =COUNTIF(E19:FH42,"A")*0.25 -> 0 | F9: Grau: | L9: Grup: | R9: Curs:
A10: Seminari | B10: B | C10: =COUNTIF(E19:FH42,"B")*0.25 -> 0 | F10: Model docent: | L10: ECTS:
A11: Seminari | B11: C | C11: =COUNTIF(E19:FH42,"C")*0.25 -> 0 | F11: N. Alumnes: | L11: Professor/a respons. assig.:
A12: Avaluació | B12: AV | C12: =COUNTIF(E19:FH42,"AV")*0.25 -> 0 | F12: Hores Gran Grup: | L12: Professors/res assignatures:
A13: Pràct. Labor. | B13: PLA | C13: =COUNTIF(E19:FH42,"PLA")*0.25 -> 0 | F13: Hores per Seminari:
A14: Pràct. Labor. | B14: PLB | C14: =COUNTIF(E19:FH42,"PLB")*0.25 -> 0 | F14: Hores per Pràctiques Laboratori:
A15: Pràct. Labor. | B15: PLC | C15: =COUNTIF(E19:FH42,"PLC")*0.25 -> 0
A16: Tutories | B16: T | C16: =COUNTIF(E19:FH42,"T")*0.25 -> 0
A18: Horari | E18: 2025-09-12 | I18: =E18+7 -> 2025-09-19 | L18: =I18+7 -> 45926 | M18: =I18+7 -> 2025-09-26 | P18: =M18+7 -> 45933 | Q18: =M18+7 -> 2025-10-03 | T18: =Q18+7 -> 45940 | U18: =Q18+7 -> 2025-10-10 | X18: =U18+7 -> 45947 | Y18: =U18+7 -> 2025-10-17 | AB18: =Y18+7 -> 45954 | AC18: =Y18+7 -> 2025-10-24 | AF18: =AC18+7 -> 45961 | AG18: =AC18+7 -> 2025-10-31 | AJ18: =AG18+7 -> 45968 | AK18: =AG18+7 -> 2025-11-07 | AN18: =AK18+7 -> 45975 | AO18: =AK18+7 -> 2025-11-14 | AR18: =AO18+7 -> 45982 | AS18: =AO18+7 -> 2025-11-21 | AV18: =AS18+7 -> 45989 | AW18: =AS18+7 -> 2025-11-28 | AZ18: =AW18+7 -> 45996 | BA18: =AW18+7 -> 2025-12-05 | BD18: =BA18+7 -> 46003 | BE18: =BA18+7 -> 2025-12-12 | BH18: =BE18+7 -> 46010 | BI18: =BE18+7 -> 2025-12-19 | BL18: =BI18+7 -> 46017 | BM18: 2026-01-09 | BP18: =BM18+7 -> 46038 | BQ18: =BM18+7 -> 2026-01-16 | BT18: =BQ18+7 -> 46045 | BU18: =BQ18+7 -> 2026-01-23 | BX18: =BU18+7 -> 46052 | BY18: =BU18+7 -> 2026-01-30 | CB18: =BY18+7 -> 46059 | CC18: =BY18+7 -> 2026-02-06 | CF18: =CC18+7 -> 46066 | CG18: =CC18+7 -> 2026-02-13 | CJ18: =CG18+7 -> 46073 | CK18: =CG18+7 -> 2026-02-20 | CN18: =CK18+7 -> 46080 | CO18: =CK18+7 -> 2026-02-27 | CR18: =CO18+7 -> 46087 | CS18: =CO18+7 -> 2026-03-06 | CV18: =CS18+7 -> 46094 | CW18: =CS18+7 -> 2026-03-13 | CZ18: =CW18+7 -> 46101 | DA18: =CW18+7 -> 2026-03-20 | DD18: =DA18+7 -> 46108 | DE18: =DA18+7 -> 2026-03-27 | DH18: =DE18+7 -> 46115 | DI18: 2026-04-10 | DL18: =DI18+7 -> 46129 | DM18: =DI18+7 -> 2026-04-17 | DP18: =DM18+7 -> 46136 | DQ18: =DM18+7 -> 2026-04-24 | DT18: =DQ18+7 -> 46143 | DU18: =DQ18+7 -> 2026-05-01 | DX18: =DU18+7 -> 46150 | DY18: =DU18+7 -> 2026-05-08 | EB18: =DY18+7 -> 46157 | EC18: =DY18+7 -> 2026-05-15 | EF18: =EC18+7 -> 46164 | EG18: =EC18+7 -> 2026-05-22 | EJ18: =EG18+7 -> 46171 | EK18: =EG18+7 -> 2026-05-29 | EN18: =EK18+7 -> 46178 | EO18: =EK18+7 -> 2026-06-05 | ER18: =EO18+7 -> 46185 | ES18: =EO18+7 -> 2026-06-12 | EV18: =ES18+7 -> 46192 | EW18: =ES18+7 -> 2026-06-19 | EZ18: =EW18+7 -> 46199 | FA18: =EW18+7 -> 2026-06-26 | FD18: =FA18+7 -> 46206 | FE18: =FA18+7 -> 2026-07-03 | FH18: =FE18+7 -> 46213
A19: 15:00:00 | C19: 15:15:00
A20: 15:15:00 | C20: 15:30:00
A21: 15:30:00 | C21: 15:45:00
A22: 15:45:00 | C22: 16:00:00
A23: 16:00:00 | C23: 16:15:00
A24: 16:15:00 | C24: 16:30:00
A25: 16:30:00 | C25: 16:45:00
A26: 16:45:00 | C26: 17:00:00
A27: 17:00:00 | C27: 17:15:00
A28: 17:15:00 | C28: 17:30:00
A29: 17:30:00 | C29: 17:45:00
A30: 17:45:00 | C30: 18:00:00
A31: 18:00:00 | C31: 18:15:00
A32: 18:15:00 | C32: 18:30:00
A33: 18:30:00 | C33: 18:45:00
A34: 18:45:00 | C34: 19:00:00
A35: 19:00:00 | C35: 19:15:00
A36: 19:15:00 | C36: 19:30:00
A37: 19:30:00 | C37: 19:45:00
A38: 19:45:00 | C38: 20:00:00
A39: 20:00:00 | C39: 20:15:00
A40: 20:15:00 | C40: 20:30:00
A41: 20:30:00 | C41: 20:45:00
A42: 20:45:00 | C42: 21:00:00
A43: Espai Assignat
A45: Comentaris: | DU45: Festa del Treball
A96: Model | B96: Aula | D96: ECTS | E96: Assignatures | J96: Grups | K96: Graus | L96: Sem | M96: Curs
A97: 1A | B97: 11 (GA/100) | D97: 3 | K97: GEI | L97: 1er | M97: 1
A98: 1B | B98: 12 (GA/101) | D98: 4 | E98: 44327 Anglès | J98: 1 | K98: GEP | L98: 2on | M98: 2
A99: 2 | B99: 13 (GA/102) | D99: 5 | E99: 44328 Biologia i Geologia | J99: 1/20 | K99: GEP-GEI | L99: Anual | M99: 3
A100: 3 | B100: 14 (GA/103) | D100: 6 | E100: 44330 Física i Química | J100: 1/70 | K100: GPE-GES | M100: 4
A101: 4 | B101: 15 (GA/104) | D101: 7 | E101: 44332 Geografia i història | J101: 2 | K101: GES
A102: 5 | B102: 16 (GA/111) | D102: 8 | E102: 44335 Llengua francesa | J102: 3 | K102: GPE
A103: 6 | B103: 17 (GA/112) | D103: 9 | E103: 44336 Llengua i literatura catalana i espanyola | J103: 4
B104: 18 (GA/117) | D104: 10 | E104: 44340 Orientació educativa | J104: 4/40
B105: 19 (GA/119) | D105: 12 | J105: 20
B106: 21 (GA/200) | D106: 15 | J106: 21
B107: 22 (GA/201) | J107: 31
B108: 24 (GA/203) | J108: 41
B109: 25 (GA/204) | J109: 61
B110: 26 (GA/211) | J110: 62
B111: 27 (GA/212) | J111: 70
B112: 28 (GA/218) | J112: 71
B113: 29 (GA/219) | J113: 90
B114: 31 (GA/300) | J114: 90/1
B115: 33 (GA/302)
B116: 35 (GA/304)
B117: 36 (GA/311)
B118: 37 (GA/312)
B119: 39 ( GA/319)
B120: 41 (GA/400)
B121: 43 ( GA/402)
B122: 44 (GA/403)
B123: 45 (GA/404)
B124: 46 (GA/411)
B125: 47 (GA/412)
B126: 48 (GA/418)
B127: 49 (GA/419)
B128: 61 (G6/005)
B129: 62 (G6/006)
B130: 63 ( G6/007)
B131: E.T (G6/009)
B132: 65 (G6/107)
B133: 69 (G6/208)
B134: 51 (G5/-104)
B135: 52 (G5/-106)
B136: 71 (GL/505)
B137: 72 (GL/502)
B138: 73 (GL/305)
B139: 74 (GL/402)
B140: 81 (GS/012)
B141: 82 (GS/013)
B142: 83 (GB/002)
B143: L1 (GL/102)
B144: L2 (GL/105)
B145: L3 (GA/318)
B146: Inf2 (G6/106)
B147: Inf3 (G6/105)
B148: Inf4 (G6/103)
B149: Inf5 (G6/208)
B150: Inf6 (G6/202)
B151: S1 (GB/012)
B152: S2 (GB/003)
B153: S.foniatria (GB/005)
B154: S. Polivalent (GD/000)
B155: Taller 1 (GL/308)
B156: Taller 2 (GL/306)
